bitfinex-derivatives/quotes_BTCF0:USTF0_20250928
["timestamp","ask_amount","ask_price","bid_price","bid_amount"]
[1759076127017,2.1334523,110240.0,110230.0,9.083e-05]
[1759076127712,0.03562,110230.0,110220.0,0.08943151]
[1759076127906,0.75667423,110230.0,110220.0,0.08943151]
[1759076128103,1.15667423,110230.0,110220.0,0.08943151]
[1759076129015,0.81721871,110230.0,110220.0,0.08943151]
[1759076129206,1.15767423,110230.0,110220.0,0.08943151]
[1759076129514,0.01305,110210.0,110200.0,0.1034366]
[1759076129710,0.73494371,110210.0,110200.0,0.1264766]
[1759076129910,0.75574242,110210.0,110200.0,0.1264766]
[1759076130707,0.75774242,110210.0,110200.0,0.1264766]
[1759076130913,0.76074242,110210.0,110200.0,0.1264766]
[1759076131616,0.9027969,110210.0,110200.0,0.1264766]
[1759076131818,1.24225242,110210.0,110200.0,0.1264766]
[1759076132112,1.24501258,110210.0,110200.0,0.1264766]
[1759076133516,0.39073258,110210.0,110200.0,0.1264766]
[1759076133713,0.89250706,110210.0,110200.0,0.4872766]
[1759076133919,0.89242706,110210.0,110200.0,0.4872766]
[1759076134610,1.30440241,110210.0,110200.0,0.4872766]
[1759076134918,1.31745241,110210.0,110200.0,0.4872766]
[1759076135118,0.97791689,110210.0,110200.0,0.4872766]
[1759076135515,0.99899966,110210.0,110200.0,0.4872766]
[1759076136818,1.33845518,110210.0,110200.0,0.4872766]
[1759076138322,1.33845518,110210.0,110200.0,0.4745466]
[1759076138517,0.13178966,110210.0,110200.0,0.4882266]
[1759076138720,0.47124518,110210.0,110200.0,0.4882266]
[1759076138919,1.32528518,110210.0,110200.0,0.4882266]
[1759076139219,1.32524518,110210.0,110200.0,0.4882266]
[1759076139612,0.98578966,110210.0,110200.0,0.4882266]
[1759076140019,1.32490642,110210.0,110200.0,0.4882266]
[1759076141215,0.9854509,110210.0,110200.0,0.4882266]
[1759076141422,0.47090642,110210.0,110200.0,0.4882266]
[1759076141727,1.32494642,110210.0,110200.0,0.4882266]
[1759076142318,0.9854909,110210.0,110200.0,0.4882266]
[1759076142520,1.32494642,110210.0,110200.0,0.4882266]
[1759076142724,0.47090642,110210.0,110200.0,0.4882266]
[1759076143023,1.32474642,110210.0,110200.0,0.4882266]
[1759076143524,0.9852509,110210.0,110200.0,0.4882266]
[1759076143724,0.9852509,110210.0,110200.0,0.82768212]
[1759076144021,0.9626809,110210.0,110200.0,1.22768212]
[1759076145218,0.09829203,110210.0,110200.0,1.22768212]
[1759076147726,0.10457847,110210.0,110200.0,1.22768212]
[1759076147930,0.09829203,110210.0,110200.0,1.22768212]
[1759076148122,1e-07,110210.0,110200.0,2.08128212]
[1759076148318,0.73521552,110240.0,110230.0,0.1253759]
[1759076148523,0.72216552,110240.0,110230.0,0.1253759]
[1759076148728,1.5819595,110240.0,110230.0,0.1253759]
[1759076148928,1.24250398,110240.0,110230.0,0.46483142]
[1759076149128,1.24250398,110240.0,110230.0,0.1253759]
[1759076149331,1.24250398,110240.0,110230.0,0.46483142]
[1759076149827,1.25050398,110240.0,110230.0,0.46483142]
[1759076150028,1.25050398,110240.0,110230.0,0.1253759]
[1759076150729,1.6141395,110240.0,110230.0,0.1120759]
[1759076150937,1.27468398,110240.0,110230.0,0.1120759]
[1759076151130,1.68697678,110240.0,110230.0,0.1120759]
[1759076151930,1.77765448,110240.0,110230.0,0.1120759]
[1759076154530,2.17765448,110240.0,110230.0,0.1120759]
[1759076154735,2.17765448,110240.0,110230.0,0.0906859]
[1759076155535,2.17765448,110240.0,110230.0,0.1120759]
[1759076156131,0.01318,110230.0,110220.0,0.0906897]
[1759076156335,0.73534552,110230.0,110220.0,0.0906897]
[1759076156535,0.76793579,110230.0,110220.0,0.0906897]
[1759076157240,0.03509,110220.0,110210.0,0.0906968]
[1759076157539,1.58838552,110220.0,110210.0,0.0906968]
[1759076157843,1.24893,110220.0,110210.0,0.0906968]
[1759076158140,1.58838552,110220.0,110210.0,0.0906968]
[1759076158540,1.59338552,110220.0,110210.0,0.0906968]
[1759076158930,1.68408372,110220.0,110210.0,0.0906968]
[1759076159131,1.3446282,110220.0,110210.0,0.0906968]
[1759076159443,1.68808372,110220.0,110210.0,0.0906968]
[1759076159738,0.1038835,110210.0,110200.0,0.1120952]
[1759076160037,0.82604902,110210.0,110200.0,0.1120952]
[1759076160245,0.84679065,110210.0,110200.0,0.1120952]
[1759076161043,0.84879065,110210.0,110200.0,0.1120952]
[1759076161342,0.85079065,110210.0,110200.0,0.1120952]
[1759076162541,0.51133513,110210.0,110200.0,0.1120952]
[1759076162742,0.85079065,110210.0,110200.0,0.1120952]
[1759076163544,1.70359065,110210.0,110200.0,0.1120952]
[1759076167744,1.36413513,110210.0,110200.0,0.1120952]
[1759076167944,1.70359065,110210.0,110200.0,0.1120952]
[1759076168146,0.1258006,110200.0,110190.0,0.02139]
[1759076168350,1.69931775,110200.0,110190.0,0.0907189]
[1759076169240,1.69931775,110200.0,110190.0,0.1121089]
[1759076170440,0.50734223,110200.0,110190.0,0.1121089]
[1759076170639,1.69927775,110200.0,110190.0,0.1121089]
[1759076170939,1.60848715,110200.0,110190.0,0.1121089]
[1759076171140,1.69919775,110200.0,110190.0,0.1131089]
[1759076172341,0.91993726,110200.0,110190.0,0.1131089]
[1759076172541,0.82922666,110200.0,110190.0,0.1131089]
[1759076172742,1.34209114,110200.0,110190.0,0.1131089]
[1759076172948,1.77225726,110200.0,110190.0,0.1131089]
[1759076173248,1.68154666,110200.0,110190.0,0.1265589]
[1759076173449,0.82922666,110200.0,110190.0,0.1265589]
[1759076173754,0.96807114,110200.0,110190.0,0.46601442]
[1759076174049,0.11579114,110200.0,110190.0,0.82681442]
[1759076174252,0.94732951,110200.0,110190.0,0.82681442]
[1759076175143,0.09504951,110200.0,110190.0,0.82681442]
[1759076175345,0.93808951,110200.0,110190.0,0.82681442]
[1759076175547,0.94728951,110200.0,110190.0,0.82681442]
[1759076175949,0.94728951,110200.0,110190.0,0.1265589]
[1759076176251,1.29989503,110200.0,110190.0,0.1265589]
[1759076176448,1.34209334,110200.0,110190.0,0.1265589]
[1759076176948,1.32060676,110200.0,110190.0,0.1265589]
[1759076179349,1.41131736,110200.0,110190.0,0.0917189]
[1759076179545,1.79293676,110200.0,110190.0,0.0917189]
[1759076182453,2.13319262,110200.0,110190.0,0.0917189]
[1759076183652,2.53319262,110200.0,110190.0,0.0917189]
[1759076185459,2.53319262,110200.0,110190.0,0.001]
[1759076186154,2.53319262,110200.0,110190.0,0.0917188]
[1759076187060,2.53259262,110200.0,110190.0,0.001]
[1759076187960,1.68095262,110200.0,110190.0,0.0917188]
[1759076188160,2.53259262,110200.0,110190.0,0.0917188]
[1759076188654,1.68095262,110200.0,110190.0,0.0917188]
[1759076188862,2.53251262,110200.0,110190.0,0.1133488]
[1759076189062,1.70194633,110200.0,110190.0,0.45320449]
[1759076189258,1.19024202,110200.0,110190.0,0.46660449]
[1759076189451,2.02865202,110200.0,110190.0,0.1267488]
[1759076190259,0.13658064,110200.0,110190.0,0.86660449]
[1759076190664,0.13658064,110200.0,110190.0,1.22740449]
[1759076190862,0.13658064,110200.0,110190.0,0.8875488]
[1759076191051,0.13658064,110200.0,110190.0,1.22740449]
[1759076191251,0.98806064,110200.0,110190.0,1.22740449]
[1759076192160,1.32791633,110200.0,110190.0,1.22740449]
[1759076192362,2.13242262,110200.0,110190.0,0.1133488]
[1759076192560,2.13242262,110200.0,110190.0,0.0917188]
[1759076194169,2.53242262,110200.0,110190.0,0.001]
[1759076194663,2.56501289,110200.0,110190.0,0.001]
[1759076195368,2.90486858,110200.0,110190.0,0.001]
[1759076195568,1.31353289,110200.0,110190.0,0.1133489]
[1759076195866,2.13222262,110200.0,110190.0,0.02263]
[1759076196267,2.13222262,110200.0,110190.0,0.001]
[1759076196464,2.13222262,110200.0,110190.0,0.0917188]
[1759076196968,2.13222262,110200.0,110190.0,0.001]
[1759076197268,2.16681289,110200.0,110190.0,0.001]
[1759076197767,0.1255788,110190.0,110180.0,0.1123525]
[1759076198063,0.84694622,110190.0,110180.0,0.1123525]
[1759076198671,0.84694622,110190.0,110180.0,0.0907225]
[1759076198969,0.84694622,110190.0,110180.0,0.0917225]
[1759076199870,0.50709053,110190.0,110180.0,0.001]
[1759076200070,2.03792191,110190.0,110180.0,0.001]
[1759076200767,2.47051218,110190.0,110180.0,0.001]
[1759076201072,2.51951563,110190.0,110180.0,0.001]
[1759076201272,2.47051218,110190.0,110180.0,0.001]
[1759076201460,2.47051218,110190.0,110180.0,0.00056468]
[1759076201665,2.81036787,110190.0,110180.0,0.00056468]
[1759076201867,0.1255953,110170.0,110160.0,0.11247323]
[1759076202172,0.1255953,110170.0,110150.0,0.0001]
[1759076202173,1.8874741,110170.0,110150.0,0.0001]
[1759076202472,2.03660525,110160.0,110150.0,0.01388651]
[1759076202670,1.20627698,110160.0,110150.0,0.01388651]
[1759076202972,1.3776056,110160.0,110150.0,0.01388651]
[1759076203174,2.05741863,110160.0,110150.0,0.01388651]
[1759076203374,2.02482836,110160.0,110150.0,0.0001]
[1759076203969,2.02482836,110160.0,110150.0,0.0908518]
[1759076204174,1.17378836,110160.0,110150.0,0.0908518]
[1759076204373,2.02482836,110160.0,110150.0,0.0908518]
[1759076204674,2.03649658,110160.0,110150.0,0.0908518]
[1759076205068,2.04049658,110160.0,110150.0,0.0001]
[1759076205280,1.18945658,110160.0,110150.0,0.0908518]
[1759076205467,1.94975298,110160.0,110150.0,0.0908518]
[1759076205669,1.26336309,110160.0,110150.0,0.0908518]
[1759076205874,2.11436309,110160.0,110150.0,0.1124818]
[1759076206379,2.11440309,110160.0,110150.0,0.1124818]
[1759076206569,1.26336309,110160.0,110150.0,0.1124818]
[1759076206765,2.11436309,110160.0,110150.0,0.1124818]
[1759076206975,1.26336309,110160.0,110150.0,0.1124818]
[1759076207276,2.11436309,110160.0,110150.0,0.0908518]
[1759076207970,1.26336309,110160.0,110150.0,0.0908518]
[1759076208375,2.11436309,110160.0,110150.0,0.0908518]
[1759076208877,1.17261949,110160.0,110150.0,0.0908518]
[1759076209175,2.02357949,110160.0,110150.0,0.1264318]
[1759076209376,1.26336309,110160.0,110150.0,0.1264318]
[1759076209875,2.11432309,110160.0,110150.0,0.1264318]
[1759076210274,2.11432309,110160.0,110150.0,0.1048018]
[1759076210478,2.11432309,110160.0,110150.0,0.0001]
[1759076210679,2.13588515,110160.0,110150.0,0.0001]
[1759076210976,2.87574084,110160.0,110150.0,0.0001]
[1759076212481,2.13588515,110160.0,110150.0,0.0001]
[1759076212682,1.28492515,110160.0,110150.0,0.0908517]
[1759076212982,2.13580515,110160.0,110150.0,0.0908517]
[1759076213679,1.19418155,110160.0,110150.0,0.1280017]
[1759076213879,2.13580505,110160.0,110150.0,0.1280017]
[1759076214876,2.13576505,110160.0,110150.0,0.1280017]
[1759076215273,1.28492505,110160.0,110150.0,0.1280017]
[1759076215480,2.13572505,110160.0,110150.0,0.1280017]
[1759076216082,1.19418155,110160.0,110150.0,0.1280017]
[1759076216381,2.04498155,110160.0,110150.0,0.1280017]
[1759076216972,2.04494155,110160.0,110150.0,0.1280017]
[1759076217381,0.51447017,110160.0,110150.0,0.1280017]
[1759076217580,2.04494155,110160.0,110150.0,0.1280017]
[1759076218484,1.36523017,110160.0,110150.0,0.46785739]
[1759076218684,2.04494155,110160.0,110150.0,0.46785739]
[1759076219086,2.13568505,110160.0,110150.0,0.46785739]
[1759076219485,2.13568505,110160.0,110150.0,0.1280017]
[1759076221678,1.28492505,110160.0,110150.0,0.1280017]
[1759076221995,0.92412505,110160.0,110150.0,0.1280017]
[1759076222184,1.77472505,110160.0,110150.0,0.1280017]
[1759076224283,2.11396299,110160.0,110150.0,0.1280017]
[1759076225890,2.13481767,110160.0,110150.0,0.1280017]
[1759076226590,2.13495161,110160.0,110150.0,0.1280017]
[1759076228184,2.13475161,110160.0,110150.0,0.1280017]
[1759076228381,2.13475161,110160.0,110150.0,0.0001]
[1759076228691,2.13475161,110160.0,110150.0,0.0908517]
[1759076228885,1.28435161,110160.0,110150.0,0.0908517]
[1759076229080,2.13467161,110160.0,110150.0,0.0908517]
[1759076229491,2.13467161,110160.0,110150.0,0.1140517]
[1759076230191,2.13467161,110160.0,110150.0,0.0908517]
[1759076230493,2.16726188,110160.0,110150.0,0.0908517]
[1759076232490,2.16726188,110160.0,110150.0,0.0001]
[1759076234096,2.16726188,110160.0,110150.0,0.0908517]
[1759076234097,1.31694188,110160.0,110150.0,0.0908517]
[1759076234397,2.16710188,110160.0,110150.0,0.1134517]
[1759076235697,1.31694188,110160.0,110150.0,0.1134517]
[1759076235892,2.16698188,110160.0,110150.0,0.1268417]
[1759076238006,2.16698188,110160.0,110150.0,0.1134517]
[1759076238488,0.6372305,110160.0,110150.0,0.1134517]
[1759076238690,1.22619838,110160.0,110150.0,0.1266517]
[1759076238892,2.16686188,110160.0,110150.0,0.1266517]
[1759076241803,1.22619838,110160.0,110150.0,0.1266517]
[1759076242098,1.37534269,110160.0,110150.0,0.1266517]
[1759076242296,1.71519838,110160.0,110150.0,0.46650739]
[1759076242602,1.71519838,110160.0,110150.0,0.1266517]
[1759076242810,1.71519838,110160.0,110150.0,0.46650739]
[1759076243511,1.71519838,110160.0,110150.0,0.1266517]
[1759076243707,1.71519838,110160.0,110150.0,0.46650739]
[1759076244212,1.37547604,110160.0,110150.0,0.1266517]
[1759076244610,1.46621954,110160.0,110150.0,0.1266517]
[1759076245703,1.46605954,110160.0,110150.0,0.1266517]
[1759076246610,1.82685954,110160.0,110150.0,0.1266517]
[1759076251912,0.52563232,110160.0,110150.0,0.1266517]
[1759076252115,0.86562136,110160.0,110150.0,0.1266517]
[1759076252314,1.71494136,110160.0,110150.0,0.1266517]
[1759076253222,1.68235109,110160.0,110150.0,0.1266517]
[1759076254118,1.79444978,110160.0,110150.0,0.1266517]
[1759076254619,1.82704005,110160.0,110150.0,0.1266517]
[1759076257220,0.97772005,110160.0,110150.0,0.1266517]
[1759076257422,1.82692005,110160.0,110150.0,0.1266517]
[1759076257622,1.48693101,110160.0,110150.0,0.1266517]
[1759076257818,1.82692005,110160.0,110150.0,0.1266517]
[1759076260216,1.48693101,110160.0,110150.0,0.1266517]
[1759076260418,1.82692005,110160.0,110150.0,0.1266517]
[1759076262226,1.48693101,110160.0,110150.0,0.1266517]
[1759076262422,1.82692005,110160.0,110150.0,0.1266517]
[1759076262624,2.16690909,110160.0,110150.0,0.0001]
[1759076262830,2.13431882,110160.0,110150.0,0.0001]
[1759076263222,2.16690909,110160.0,110150.0,0.0001]
[1759076264918,2.1455539,110160.0,110150.0,0.0001]
[1759076265320,2.5455539,110160.0,110150.0,0.0001]
[1759076266124,2.59455735,110160.0,110150.0,0.0001]
[1759076266325,2.56196708,110160.0,110150.0,0.0001]
[1759076267326,1.71276708,110160.0,110150.0,0.0001]
[1759076267632,1.71276708,110160.0,110150.0,0.0908517]
[1759076267931,2.56168708,110160.0,110150.0,0.0908517]
[1759076268231,2.59435872,110160.0,110150.0,0.0001]
[1759076268932,2.56168708,110160.0,110150.0,0.0001]
[1759076269133,2.59431928,110160.0,110150.0,0.0001]
[1759076270734,2.54531583,110160.0,110150.0,0.0001]
[1759076271631,1.69643583,110160.0,110150.0,0.0001]
[1759076271838,2.54527583,110160.0,110150.0,0.0001]
[1759076272635,1.69643583,110160.0,110150.0,0.0001]
[1759076273038,2.54523583,110160.0,110150.0,0.0001]
[1759076273337,1.69643583,110160.0,110150.0,0.0001]
[1759076273638,2.54523583,110160.0,110150.0,0.0001]
[1759076274633,1.69643583,110160.0,110150.0,0.0001]
[1759076274935,2.54523583,110160.0,110150.0,0.0001]
[1759076275541,1.69643583,110160.0,110150.0,0.0001]
[1759076276537,2.54515583,110160.0,110150.0,0.0001]
[1759076278742,1.69643583,110160.0,110150.0,0.0001]
[1759076278940,2.54507583,110160.0,110150.0,0.0001]
[1759076280038,1.01645775,110160.0,110150.0,0.0001]
[1759076280239,2.54503583,110160.0,110150.0,0.0001]
[1759076280841,1.69643583,110160.0,110150.0,0.0001]
[1759076281143,2.54503583,110160.0,110150.0,0.0001]
[1759076282236,2.59403928,110160.0,110150.0,0.0001]
[1759076283939,2.54503583,110160.0,110150.0,0.0001]
[1759076285346,0.1136582,110130.0,110120.0,0.53522412]
[1759076285540,1.32303232,110130.0,110120.0,0.486574]
[1759076285731,0.98304328,110130.0,110120.0,0.125774]
[1759076285932,2.02382136,110130.0,110120.0,0.125774]
[1759076286141,1.68383232,110130.0,110120.0,0.125774]
[1759076286741,2.02382136,110130.0,110120.0,0.127774]
[1759076287341,2.04510133,110130.0,110120.0,0.127774]
[1759076288036,2.04510133,110130.0,110120.0,0.130774]
[1759076288037,1.36512325,110130.0,110120.0,0.130774]
[1759076288233,0.04383508,110130.0,110120.0,0.891574]
[1759076288443,1.23214412,110130.0,110120.0,0.891574]
[1759076290041,1.32291232,110130.0,110120.0,0.891574]
[1759076291743,0.89207508,110130.0,110120.0,0.891574]
[1759076291943,1.23206412,110130.0,110120.0,0.891574]
[1759076292747,1.32283232,110130.0,110120.0,0.530774]
[1759076293230,1.68363232,110130.0,110120.0,0.530774]
[1759076294141,1.68363232,110130.0,110120.0,0.130774]
[1759076295141,1.68363232,110130.0,110120.0,0.005]
[1759076295142,2.02362136,110130.0,110120.0,0.005]
[1759076295343,2.05629356,110130.0,110120.0,0.005]
[1759076295942,2.42362136,110130.0,110120.0,0.005]
[1759076296144,1.57538136,110130.0,110120.0,0.005]
[1759076296340,2.42354136,110130.0,110120.0,0.0937764]
[1759076296839,2.42354136,110130.0,110120.0,0.003]
[1759076297545,2.42554136,110130.0,110120.0,0.003]
[1759076297748,0.1199764,110120.0,110110.0,0.0907792]
[1759076297954,0.84161111,110120.0,110110.0,0.0907792]
[1759076298646,0.84161111,110120.0,110110.0,0.1131992]
[1759076299049,0.75083471,110120.0,110110.0,0.1131992]
[1759076299447,0.41084567,110120.0,110110.0,0.1262492]
[1759076299646,1.23815471,110120.0,110110.0,0.1262492]
[1759076299842,1.59895471,110120.0,110110.0,0.1262492]
[1759076300346,0.75083471,110120.0,110110.0,0.1262492]
[1759076300549,1.59891471,110120.0,110110.0,0.1262492]
[1759076300749,1.59234471,110120.0,110110.0,0.1262492]
[1759076301650,1.68969111,110120.0,110110.0,0.0907792]
[1759076301850,0.75083471,110120.0,110110.0,0.0907792]
[1759076302147,1.67058962,110120.0,110110.0,0.1131992]
[1759076302850,1.67058962,110120.0,110110.0,0.1262492]
[1759076303848,1.66397962,110120.0,110110.0,0.1262492]
[1759076304046,0.81593962,110120.0,110110.0,0.1262492]
[1759076304247,2.00452246,110120.0,110110.0,0.1262492]
[1759076305452,2.09529886,110120.0,110110.0,0.1262492]
[1759076307153,2.00452246,110120.0,110110.0,0.1262492]
[1759076308049,2.09529886,110120.0,110110.0,0.1262492]
[1759076309159,1.41472698,110120.0,110110.0,0.1262492]
[1759076309454,2.09529886,110120.0,110110.0,0.1262492]
[1759076310049,2.09529886,110120.0,110110.0,0.1131992]
[1759076310248,1.32395058,110120.0,110110.0,0.0907792]
[1759076310453,2.00452246,110120.0,110110.0,0.0907792]
[1759076310654,2.00452246,110120.0,110110.0,0.1131992]
[1759076311053,2.00452246,110120.0,110110.0,0.1262492]
[1759076311858,0.11515058,110120.0,110110.0,0.46653514]
[1759076312155,0.94036058,110120.0,110110.0,1.56762108]
[1759076312352,0.09252058,110120.0,110110.0,1.56762108]
[1759076312546,0.94032058,110120.0,110110.0,1.56762108]
[1759076312752,0.91947491,110120.0,110110.0,1.56762108]
[1759076313645,0.07167491,110120.0,110110.0,1.56762108]
[1759076313958,0.36301535,110130.0,110120.0,0.1262464]
[1759076314158,1.23169222,110130.0,110120.0,1.16761828]
[1759076314461,0.89140628,110130.0,110120.0,1.16761828]
[1759076315160,0.89640628,110130.0,110120.0,1.16761828]
[1759076315754,0.89636628,110130.0,110120.0,0.4870464]
[1759076315954,0.89636628,110130.0,110120.0,1.16761828]
[1759076316258,1.23665222,110130.0,110120.0,0.82733234]
[1759076318254,0.04860628,110130.0,110120.0,0.82733234]
[1759076318459,0.02597628,110130.0,110120.0,1.56761828]
[1759076318758,8e-08,110130.0,110120.0,1.6162684]
[1759076319558,8e-08,110130.0,110120.0,1.2162684]
[1759076320458,8e-08,110130.0,110120.0,1.16761828]
[1759076320957,0.36291602,110130.0,110120.0,0.46653234]
[1759076321160,0.02263008,110130.0,110120.0,1.16761828]
[1759076321563,0.02263008,110130.0,110120.0,0.4870464]
[1759076321767,0.02263008,110130.0,110120.0,1.16761828]
[1759076323065,0.36291602,110130.0,110120.0,0.82733234]
[1759076323266,0.81448422,110130.0,110120.0,0.46653234]
[1759076323473,0.81448422,110130.0,110120.0,0.1262464]
[1759076323665,0.72371602,110130.0,110120.0,0.1262464]
[1759076324067,0.38343008,110130.0,110120.0,0.1262464]
[1759076324266,0.72371602,110130.0,110120.0,0.1262464]
[1759076324570,0.36291602,110130.0,110120.0,0.1262464]
[1759076325176,0.72371602,110130.0,110120.0,0.1262464]
[1759076325767,0.36291602,110130.0,110120.0,0.1262464]
[1759076325973,0.72371602,110130.0,110120.0,0.1262464]
[1759076326670,0.81448422,110130.0,110120.0,0.1262464]
[1759076328767,0.72371602,110130.0,110120.0,0.1262464]
[1759076329278,1.57095602,110130.0,110120.0,0.1262464]
[1759076329974,1.57091602,110130.0,110120.0,0.1262464]
[1759076330677,1.5916808,110130.0,110120.0,0.1262464]
[1759076330973,0.7444808,110130.0,110120.0,0.1262464]
[1759076331170,1.5916808,110130.0,110120.0,0.1262464]
[1759076331474,1.25135486,110130.0,110120.0,0.1262464]
[1759076331677,0.7444808,110130.0,110120.0,0.1262464]
[1759076331877,1.5916408,110130.0,110120.0,0.1262464]
[1759076332469,0.835249,110130.0,110120.0,0.1262464]
[1759076332771,1.682409,110130.0,110120.0,0.1262464]
[1759076333776,0.835249,110130.0,110120.0,0.1262464]
[1759076333979,0.49496306,110130.0,110120.0,0.1262464]
[1759076334180,0.40419486,110130.0,110120.0,1.20681828]
[1759076334370,0.02076486,110130.0,110120.0,1.56761828]
[1759076334677,0.86784486,110130.0,110120.0,1.56761828]
[1759076339083,0.02076486,110130.0,110120.0,1.56761828]
[1759076339380,0.86772486,110130.0,110120.0,1.56761828]
[1759076340175,1.22852486,110130.0,110120.0,1.20681828]
[1759076340684,1.2080108,110130.0,110120.0,1.20681828]
[1759076340883,1.2290308,110130.0,110120.0,0.5262464]
[1759076341084,1.2290308,110130.0,110120.0,1.20681828]
[1759076341682,0.88874486,110130.0,110120.0,1.20681828]
[1759076341882,1.2290308,110130.0,110120.0,1.20681828]
[1759076342689,1.2290308,110130.0,110120.0,0.5262464]
[1759076345380,8e-08,110130.0,110120.0,1.6162684]
[1759076348184,8e-08,110130.0,110120.0,1.56761828]
[1759076351987,8e-08,110130.0,110120.0,2.41409828]
[1759076352384,8e-08,110130.0,110120.0,2.41405828]
[1759076353487,8e-08,110130.0,110120.0,1.56761828]
[1759076353791,8e-08,110130.0,110120.0,2.41401828]
[1759076353979,0.02313008,110130.0,110120.0,0.8870464]
[1759076354185,0.36341602,110130.0,110120.0,0.1262464]
[1759076354387,0.36341602,110130.0,110120.0,0.46653234]
[1759076354791,0.76341602,110130.0,110120.0,0.46653234]
[1759076355692,0.78421422,110130.0,110120.0,0.46653234]
[1759076357291,0.76341602,110130.0,110120.0,0.46653234]
[1759076357479,0.78421578,110130.0,110120.0,0.46653234]
[1759076357790,0.44392984,110130.0,110120.0,0.46653234]
[1759076357993,0.78421578,110130.0,110120.0,0.46653234]
[1759076359994,0.44392984,110130.0,110120.0,0.46653234]
[1759076360195,0.78421578,110130.0,110120.0,0.80681828]
[1759076360392,0.78421578,110130.0,110120.0,0.1262464]
[1759076360593,0.78421578,110130.0,110120.0,0.46653234]
[1759076361196,0.44392984,110130.0,110120.0,0.46653234]
[1759076361395,0.44392984,110130.0,110120.0,0.80681828]
[1759076361696,0.02079984,110130.0,110120.0,1.16761828]
[1759076361896,0.02079984,110130.0,110120.0,1.6164048]
[1759076362096,8e-08,110130.0,110120.0,1.6164048]
[1759076363192,8e-08,110130.0,110120.0,2.4624848]
[1759076366401,8e-08,110130.0,110120.0,2.12198019]
[1759076371006,8e-08,110130.0,110120.0,2.46204746]
[1759076371301,8e-08,110130.0,110120.0,2.12198019]
[1759076371506,8e-08,110130.0,110120.0,2.46204746]
[1759076371806,8e-08,110130.0,110120.0,2.12198019]
[1759076372207,8e-08,110130.0,110120.0,1.78191292]
[1759076372394,8e-08,110130.0,110120.0,2.12198019]
[1759076373006,8e-08,110130.0,110120.0,2.46204746]
[1759076373199,8e-08,110130.0,110120.0,2.41326094]
[1759076373406,8e-08,110130.0,110120.0,2.47830964]
[1759076374804,0.39344127,110170.0,110160.0,0.0907437]
[1759076375000,0.04213682,110170.0,110160.0,0.46619097]
[1759076375808,0.04213682,110170.0,110160.0,0.82699097]
[1759076376495,0.02854779,110170.0,110160.0,0.82699097]
[1759076376701,0.02854779,110170.0,110160.0,1.16705824]
[1759076376900,0.02854779,110170.0,110160.0,0.82699097]
[1759076377099,0.02854779,110170.0,110160.0,1.16705824]
[1759076377605,0.05054779,110170.0,110160.0,0.82699097]
[1759076377998,0.04280682,110170.0,110160.0,2.01261824]
[1759076378402,0.01570492,110170.0,110160.0,2.01261824]
[1759076378603,0.47784576,110190.0,110180.0,0.1047272]
[1759076378808,0.11704576,110190.0,110180.0,0.82697447]
[1759076379308,0.12451288,110190.0,110180.0,0.82697447]
[1759076379505,0.48531288,110190.0,110180.0,0.46617447]
[1759076380712,0.50331288,110190.0,110180.0,0.46617447]
[1759076381108,0.50160562,110190.0,110180.0,0.46617447]
[1759076383210,0.59232462,110190.0,110180.0,0.1261072]
[1759076383406,0.59232462,110190.0,110180.0,0.46617447]
[1759076384110,0.58332462,110190.0,110180.0,0.46617447]
[1759076384506,0.49260562,110190.0,110180.0,0.46617447]
[1759076385513,0.56238749,110190.0,110180.0,0.46617447]
[1759076390423,0.58299192,110190.0,110180.0,0.46617447]
[1759076391619,0.58299192,110190.0,110180.0,0.1261072]
[1759076391811,0.58299192,110190.0,110180.0,0.46617447]
[1759076392836,0.58299192,110190.0,110180.0,0.1261072]
[1759076393025,0.92305919,110190.0,110180.0,0.1261072]
[1759076393428,0.92305919,110190.0,110160.0,1.65049097]
[1759076393429,0.02235,110170.0,110160.0,0.82696947]
[1759076394634,1.22803,110180.0,110170.0,0.1257244]
[1759076394836,1.24864407,110180.0,110170.0,0.46579167]
[1759076395432,1.67943754,110180.0,110170.0,0.1257244]
[1759076395627,0.83455754,110180.0,110170.0,0.1257244]
[1759076395936,1.24860407,110180.0,110170.0,0.46579167]
[1759076396136,0.40676407,110180.0,110170.0,0.1257244]
[1759076396435,1.25160407,110180.0,110170.0,0.46579167]
[1759076396733,0.40676407,110180.0,110170.0,0.46579167]
[1759076396933,1.25156407,110180.0,110170.0,0.46579167]
[1759076397132,1.25356407,110180.0,110170.0,0.46579167]
[1759076397633,1.25356407,110180.0,110170.0,0.1257244]
[1759076397932,1.25356407,110180.0,110170.0,0.46579167]
[1759076400838,1.34429027,110180.0,110170.0,0.46579167]
[1759076401839,1.25352407,110180.0,110170.0,0.46579167]
[1759076402639,1.34425027,110180.0,110170.0,0.46579167]
[1759076402936,1.68431754,110180.0,110170.0,0.1257244]
[1759076403134,2.08431754,110180.0,110170.0,0.03499]
[1759076403336,2.09057754,110180.0,110160.0,0.4655363]
[1759076403542,0.1130844,110170.0,110160.0,0.4868963]
[1759076403740,0.13369847,110170.0,110160.0,0.4868963]
[1759076404538,0.13369847,110170.0,110160.0,0.4878963]
[1759076405036,0.13369847,110170.0,110160.0,0.82796357]
[1759076405233,0.13369847,110170.0,110160.0,0.73722727]
[1759076405437,0.47476574,110170.0,110160.0,0.03636]
[1759076406235,0.13469847,110170.0,110160.0,0.1271016]
[1759076406539,0.13469847,110170.0,110160.0,0.46716887]
[1759076406740,0.97937847,110170.0,110160.0,0.46716887]
[1759076407237,0.04396407,110170.0,110160.0,0.46716887]
[1759076407437,0.88864407,110170.0,110160.0,0.46716887]
[1759076408344,0.04396407,110170.0,110160.0,0.80723614]
[1759076408644,0.02161407,110170.0,110160.0,0.80723614]
[1759076409642,0.04396407,110170.0,110160.0,0.80723614]
[1759076412242,0.04396407,110170.0,110160.0,1.16803614]
[1759076412944,0.02161407,110170.0,110160.0,1.16803614]
[1759076414335,0.02161407,110170.0,110160.0,1.56803614]
[1759076415840,0.02161407,110170.0,110160.0,2.41259614]
[1759076416545,0.001,110170.0,110160.0,2.46137736]
[1759076416746,0.001,110170.0,110160.0,2.46133736]
[1759076417941,0.001,110170.0,110160.0,0.53668262]
[1759076418244,0.0433842,110170.0,110160.0,0.82796867]
[1759076418748,0.1341173,110170.0,110160.0,0.82796867]
[1759076419349,0.0433842,110170.0,110160.0,0.82796867]
[1759076424154,0.0433842,110170.0,110160.0,1.16803594]
[1759076424360,0.0216942,110170.0,110160.0,1.16803594]
[1759076425861,0.0216942,110170.0,110160.0,1.61681716]
[1759076427061,0.001,110170.0,110160.0,1.61681716]
[1759076428364,0.001,110170.0,110160.0,1.61630456]
[1759076429758,0.001,110170.0,110160.0,1.55611553]
[1759076431965,0.001,110170.0,110160.0,2.40035553]
[1759076433661,0.001,110170.0,110160.0,1.55611553]
[1759076433861,0.02170075,110170.0,110160.0,2.40023553]
[1759076434664,0.02170075,110170.0,110160.0,2.06042456]
[1759076435870,0.02170075,110170.0,110160.0,1.21630456]